fUST/lending_fUST_20250106
["ID","MTS","AMOUNT","RATE_DAILY","PERIOD"]
[347819675,1736130651845,-500.0,0.00022089,2]
[347819676,1736130651855,-500.0,0.00022089,2]
[347819677,1736130651864,-500.0,0.00022092,3]
[347819678,1736130651873,-500.0,0.00022092,3]
[347819679,1736130651883,-500.0,0.00022092,3]
[347819680,1736130651892,-595.13322512,0.00022092,3]
[347819681,1736130651902,-511.66472479,0.00022092,3]
[347819682,1736130651911,-524.59,0.00022092,3]
[347819683,1736130651920,-512.89792803,0.00022092,3]
[347819684,1736130651930,-510.71483011,0.00022092,3]
[347819685,1736130651939,-1633.85,0.00022092,3]
[347819686,1736130651949,-500.0,0.00022092,3]
[347819687,1736130651958,-500.0,0.00022092,3]
[347819688,1736130651968,-1313.68,0.00022092,3]
[347819689,1736130652051,-180.365055,0.00022092,7]
[347819690,1736130652061,-180.365055,0.00022092,7]
[347819691,1736130652070,-151.0,0.00022093,7]
[347819692,1736130652079,-158.410331,0.00022093,7]
[347819693,1736130652088,-500.0,0.00022093,3]
[347819694,1736130652097,-500.0,0.00022093,3]
[347819695,1736130652107,-515.15025277,0.00022093,3]
[347819696,1736130652116,-353.245176,0.00022093,7]
[347819697,1736130652125,-353.245176,0.00022093,7]
[347819698,1736130652134,-500.0,0.00022093,3]
[347819699,1736130652143,-151.0,0.00022093,7]
[347819700,1736130652152,-500.0,0.00022093,3]
[347819701,1736130652162,-500.0,0.00022093,3]
[347819702,1736130652171,-151.0,0.00022095,2]
[347819703,1736130652179,-1000.0,0.00022121,2]
[347819704,1736130652189,-151.0,0.00022126,7]
[347819705,1736130652198,-500.0,0.00022126,3]
[347819706,1736130652207,-3890.51,0.00022127,3]
[347819707,1736130652216,-500.0,0.00022127,3]
[347819708,1736130652225,-507.91862511,0.00022127,3]
[347819709,1736130652234,-152.1827,0.00022128,7]
[347819710,1736130652243,-151.0,0.00022128,7]
[347819711,1736130652253,-2782.5,0.00022129,3]
[347819712,1736130652263,-353.245176,0.00022129,7]
[347819713,1736130652272,-353.245176,0.00022129,7]
[347819714,1736130652281,-1298.66794017,0.00022141,2]
[347819715,1736130652290,-162.290879,0.00022174,2]
[347819716,1736130652299,-150.157,0.00022178,2]
[347819717,1736130652308,-150.0,0.00022178,2]
[347819718,1736130652317,-150.166,0.00022178,2]
[347819719,1736130652327,-535.925,0.00022178,2]
[347819720,1736130652336,-2094.141,0.00022178,2]
[347819721,1736130652345,-2330.193,0.00022178,2]
[347819722,1736130652354,-860.66,0.00022231,3]
[347819723,1736130652363,-500.0,0.00022231,3]
[347819724,1736130652373,-500.0,0.00022231,3]
[347819725,1736130652382,-500.0,0.00022231,3]
[347819726,1736130652391,-4473.9,0.00022232,3]
[347819727,1736130652401,-1359.1,0.00022232,3]
[347819728,1736130652410,-778.49,0.00022232,3]
[347819729,1736130652419,-500.0,0.00022232,3]
[347819730,1736130652430,-500.0,0.00022232,3]
[347819731,1736130652442,-500.0,0.00022232,3]
[347819732,1736130652451,-877.45,0.00022232,3]
[347819733,1736130652459,-500.0,0.00022232,3]
[347819734,1736130652469,-500.0,0.00022232,3]
[347819735,1736130652479,-500.0,0.00022232,3]
[347819736,1736130652488,-500.0,0.00022232,3]
[347819737,1736130652498,-500.0,0.00022232,3]
[347819738,1736130652507,-500.0,0.00022233,3]
[347819739,1736130652517,-500.0,0.00022233,3]
[347819740,1736130652526,-500.0,0.00022233,3]
[347819741,1736130652536,-500.31062426,0.00022233,3]
[347819742,1736130652545,-500.0,0.00022233,3]
[347819743,1736130652555,-500.0,0.00022233,3]
[347819744,1736130652563,-500.0,0.00022233,3]
[347819745,1736130652572,-500.0,0.00022233,3]
[347819746,1736130652581,-500.0,0.00022233,3]
[347819747,1736130652591,-500.0,0.00022233,3]
[347819748,1736130652600,-500.0,0.00022233,3]
[347819749,1736130652610,-500.0,0.00022233,3]
[347819750,1736130652619,-500.0,0.00022233,3]
[347819751,1736130652628,-500.0,0.00022233,3]
[347819752,1736130652637,-500.0,0.00022233,3]
[347819753,1736130652647,-500.0,0.00022233,3]
[347819754,1736130652655,-12322.45,0.00022233,3]
[347819755,1736130652665,-500.0,0.00022233,3]
[347819756,1736130652674,-337.15852018,0.00022233,3]
[347819757,1736130652683,-500.0,0.00022233,3]
[347819758,1736130652692,-628.77110079,0.00022233,3]
[347819759,1736130652701,-500.0,0.00022233,3]
[347819760,1736130652711,-180.365055,0.00022233,7]
[347819761,1736130652721,-180.365055,0.00022233,7]
[347819762,1736130652730,-1298.66794017,0.00022245,2]
[347819763,1736130652739,-1298.66794017,0.00022348,2]
[347819764,1736130652751,-160.0,0.00022365,3]
[347819765,1736130652760,-500.0,0.00022366,3]
[347819766,1736130652769,-500.0,0.00022366,3]
[347819767,1736130652778,-606.97003457,0.00022366,3]
[347819768,1736130652787,-524.59,0.00022366,3]
[347819769,1736130652797,-256.72049,0.00022366,7]
[347819770,1736130652806,-1633.85,0.00022366,3]
[347819771,1736130652817,-500.0,0.00022366,3]
[347819772,1736130652826,-500.0,0.00022366,3]
[347819773,1736130652835,-1313.68,0.00022366,3]
[347819774,1736130652845,-151.0,0.00022367,2]
[347819775,1736130652854,-500.0,0.00022367,3]
[347819776,1736130652863,-513.59439112,0.00022367,3]
[347819777,1736130652873,-353.245176,0.00022367,7]
[347819778,1736130652882,-353.245176,0.00022367,7]
[347819779,1736130652891,-500.0,0.00022367,3]
[347819780,1736130652900,-500.0,0.00022367,3]
[347819781,1736130652913,-500.0,0.00022367,3]
[347819782,1736130652927,-151.0,0.00022368,7]
[347819783,1736130652939,-500.0,0.000224,3]
[347819784,1736130652952,-3890.51,0.00022401,3]
[347819785,1736130652963,-500.0,0.00022401,3]
[347819786,1736130652976,-236.134689,0.00022403,2]
[347819787,1736130652987,-2782.5,0.00022403,3]
[347819788,1736130653000,-259.56569,0.00022405,7]
[347819789,1736130653013,-257.66177491,0.00022421,2]
[347819790,1736130653026,-180.365055,0.00022421,7]
[347819791,1736130653038,-180.365055,0.00022421,7]
[347819792,1736130653050,-1298.66794017,0.00022452,2]
[347819793,1736130653063,-860.66,0.00022505,3]
[347819794,1736130653076,-500.0,0.00022505,3]
[347819795,1736130653089,-500.0,0.00022505,3]
[347819796,1736130653100,-459.99074855,0.00022505,3]
[347819797,1736130653112,-4473.9,0.00022506,3]
[347819798,1736130653125,-1359.1,0.00022506,3]
[347819799,1736130653137,-778.49,0.00022506,3]
[347819800,1736130653149,-500.0,0.00022506,3]
[347819801,1736130653161,-500.0,0.00022506,3]
[347819802,1736130653171,-500.0,0.00022506,3]
[347819803,1736130653181,-877.45,0.00022506,3]
[347819804,1736130653193,-500.0,0.00022506,3]
[347819805,1736130653204,-500.0,0.00022506,3]
[347819806,1736130653216,-500.0,0.00022506,3]
[347819807,1736130653228,-500.0,0.00022506,3]
[347819808,1736130653240,-500.0,0.00022506,3]
[347819809,1736130653254,-500.0,0.00022507,3]
[347819810,1736130653267,-500.0,0.00022507,3]
[347819811,1736130653280,-500.0,0.00022507,3]
[347819812,1736130653293,-367.96765873,0.00022507,3]
[347819813,1736130653304,-291.55470464,0.00022507,3]
[347819814,1736130653314,-500.0,0.00022507,3]
[347819815,1736130653325,-500.0,0.00022507,3]
[347819816,1736130653335,-509.87891448,0.00022507,3]
[347819817,1736130653347,-500.0,0.00022507,3]
[347819818,1736130653360,-500.0,0.00022507,3]
[347819819,1736130653372,-500.0,0.00022507,3]
[347819820,1736130653384,-500.0,0.00022507,3]
[347819821,1736130653395,-303.44160659,0.00022507,3]
[347819822,1736130653406,-500.0,0.00022507,3]
[347819823,1736130653417,-346.28544101,0.00022507,3]
[347819824,1736130653430,-12322.45,0.00022507,3]
[347819825,1736130653442,-500.0,0.00022507,3]
[347819826,1736130653453,-500.0,0.00022507,3]
[347819827,1736130653463,-500.0,0.00022507,3]
[347819828,1736130653474,-1298.66794017,0.00022555,2]
[347819829,1736130653486,-223.54317191,0.00022566,2]
[347819830,1736130653499,-5448.36355997,0.0002258,60]
[347819831,1736130653511,-1000.02,0.000226,20]
[347819832,1736130653523,-192.0,0.000226,10]
[347819833,1736130653535,-1000.0,0.00022637,2]
[347819834,1736130653546,-1000.0,0.00022637,2]
[347819835,1736130653557,-500.0,0.0002264,3]
[347819836,1736130653567,-500.0,0.0002264,3]
[347819837,1736130653579,-524.59,0.0002264,3]
[347819838,1736130653590,-1633.85,0.0002264,3]
[347819839,1736130653601,-500.0,0.0002264,3]
[347819840,1736130653612,-500.0,0.0002264,3]
[347819841,1736130653624,-1313.68,0.0002264,3]
[347819842,1736130653636,-151.0,0.00022641,7]
[347819843,1736130653646,-500.0,0.00022641,3]
[347819844,1736130653658,-353.245176,0.00022641,7]
[347819845,1736130653668,-353.245176,0.00022641,7]
[347819846,1736130653680,-500.0,0.00022641,3]
[347819847,1736130653690,-500.0,0.00022641,3]
[347819848,1736130653702,-500.0,0.00022641,3]
[347819849,1736130653713,-180.365055,0.00022641,7]
[347819850,1736130653724,-180.365055,0.00022641,7]
[347819851,1736130653735,-1298.66794017,0.00022659,2]
[347819852,1736130653747,-322.68848819,0.00022674,3]
[347819853,1736130653759,-3890.51,0.00022675,3]
[347819854,1736130653771,-500.0,0.00022675,3]
[347819855,1736130653782,-151.0,0.00022676,7]
[347819856,1736130653793,-2782.5,0.00022677,3]
[347819857,1736130653804,-151.0,0.000227,8]
[347819858,1736130653815,-2500.0,0.00022728,3]
[347819859,1736130653826,-1298.66794017,0.00022762,2]
[347819860,1736130653837,-266.0,0.0002277,8]
[347819861,1736130653848,-860.66,0.00022779,3]
[347819862,1736130653860,-500.0,0.00022779,3]
[347819863,1736130653870,-500.0,0.00022779,3]
[347819864,1736130653881,-4473.9,0.0002278,3]
[347819865,1736130653894,-1359.1,0.0002278,3]
[347819866,1736130653904,-778.49,0.0002278,3]
[347819867,1736130653916,-500.0,0.0002278,3]
[347819868,1736130653927,-500.0,0.0002278,3]
[347819869,1736130653939,-500.0,0.0002278,3]
[347819870,1736130653950,-877.45,0.0002278,3]
[347819871,1736130654070,-500.0,0.0002278,3]
[347819872,1736130654083,-500.0,0.0002278,3]
[347819873,1736130654093,-500.0,0.0002278,3]
[347819874,1736130654102,-500.0,0.0002278,3]
[347819875,1736130654111,-500.0,0.0002278,3]
[347819876,1736130654120,-500.0,0.00022781,3]
[347819877,1736130654130,-500.0,0.00022781,3]
[347819878,1736130654139,-500.0,0.00022781,3]
[347819879,1736130654148,-500.0,0.00022781,3]
[347819880,1736130654158,-500.0,0.00022781,3]
[347819881,1736130654167,-500.0,0.00022781,3]
[347819882,1736130654177,-500.0,0.00022781,3]
[347819883,1736130654186,-500.0,0.00022781,3]
[347819884,1736130654195,-500.0,0.00022781,3]
[347819885,1736130654205,-550.16180412,0.00022781,3]
[347819886,1736130654215,-12322.45,0.00022781,3]
[347819887,1736130654224,-500.0,0.00022781,3]
[347819888,1736130654233,-500.0,0.00022781,3]
[347819889,1736130654243,-500.0,0.00022781,3]
[347819890,1736130654253,-51996.7294748,0.000228,3]
[347819897,1736130826554,162.250214,0.00013973,2]
[347819901,1736131185183,-333.57750635,0.00018235,2]
[347819902,1736131185206,-217.17128147,0.00018519,2]
[347819903,1736131185229,-163.17755,0.00019234,2]
[347819904,1736131185251,-500.0,0.00019494,2]
[347819905,1736131185273,-192.8252633,0.000196,2]
[347819906,1736131385844,426.94403934,0.0002,2]
[347819907,1736131393684,1322.63045457,0.0002,2]
[347819908,1736131533143,-192.4921962,0.00020182,2]
[347819909,1736131533164,-158.77252265,0.00020368,2]
[347819910,1736131533185,-158.77252265,0.00020407,2]
[347819911,1736131533205,-158.77252265,0.00020447,2]
[347819912,1736131533226,-500.0,0.00020468,2]
[347819913,1736131533247,-129.5084703,0.00020486,2]
[347819914,1736131554087,-300.0,0.00020586,2]
[347819915,1736131554109,-500.0,0.00020587,3]
[347819916,1736131554131,-267.38312879,0.00020587,3]
[347819917,1736131554151,-448.75379667,0.00020587,3]
[347819918,1736131554172,-500.0,0.00020587,3]
[347819919,1736131554192,-500.0,0.00020587,3]
[347819920,1736131554213,-500.0,0.00020587,3]
[347819921,1736131554233,-500.0,0.00020587,3]
[347819922,1736131554253,-262.55913784,0.00020587,3]
[347819924,1736131612113,1902.50092307,0.000189,2]
[347819926,1736131621384,161.9084033,0.00019713,2]
[347819927,1736131627090,-237.44086216,0.00020587,3]
[347819928,1736131627111,-460.07892221,0.00020587,3]
[347819929,1736131632100,-39.92107779,0.00020587,3]
[347819930,1736131632120,-164.51942792,0.00020588,3]
[347819931,1736131636134,-336.00829826,0.00020588,3]
[347819932,1736131636156,-240.0,0.00020588,2]
[347819933,1736131636180,-1157.31,0.00020589,3]
[347819934,1736131636205,-500.0,0.00020589,3]
[347819935,1736131636227,-500.0,0.00020589,3]
[347819936,1736131636249,-500.0,0.00020589,3]
[347819937,1736131636271,-500.0,0.00020589,3]
[347819938,1736131636291,-500.0,0.00020679,3]
[347819939,1736131636312,-635.31891739,0.00020679,3]
[347819940,1736131636334,-500.0,0.00020679,3]
[347819941,1736131636355,-514.66145373,0.00020679,3]
[347819942,1736131636378,-272.85715259,0.00020679,3]
[347819966,1736131804403,5022.46017096,0.00017127,2]
[347820497,1736131837803,162.199321,0.00013973,2]
[347820577,1736131846652,-537.91,0.00020678,3]
[347820578,1736131846663,-500.0,0.00020678,3]
[347820579,1736131846672,-192.42,0.00020678,3]
[347820580,1736131846682,-500.0,0.00020678,3]
[347820581,1736131846691,-2796.19,0.00020678,3]
[347820582,1736131846700,-227.14284741,0.00020679,3]
[347820583,1736131846709,-500.0,0.00020679,3]
[347820584,1736131846718,-500.0,0.00020679,3]
[347820585,1736131846727,-901.7,0.00020679,3]
[347820586,1736131846736,-598.36146103,0.00020679,3]
[347820587,1736131846746,-500.0,0.00020679,3]
[347820588,1736131846755,-521.88,0.00020679,3]
[347820589,1736131846764,-500.0,0.00020679,3]
[347820590,1736131846773,-7709.78,0.00020679,3]
[347820591,1736131846783,-500.0,0.00020679,3]
[347820592,1736131846792,-511.56877376,0.00020679,3]
[347820593,1736131846801,-377.81767268,0.00020679,3]
[347820594,1736131846810,-548.4,0.00020679,3]
[347820595,1736131846820,-500.0,0.00020679,3]
[347820596,1736131846829,-500.0,0.00020679,3]
[347820597,1736131846839,-500.0,0.00020679,3]
[347820598,1736131846848,-500.0,0.00020679,3]
[347820599,1736131846859,-500.0,0.00020679,3]
[347820600,1736131846868,-500.0,0.00020679,3]
[347820601,1736131846877,-500.0,0.00020679,3]
[347820602,1736131846890,-500.0,0.00020679,3]
[347820603,1736131846899,-500.0,0.00020679,3]
[347820604,1736131846908,-310.95731207,0.00020679,3]
[347820605,1736131846917,-500.0,0.00020679,3]
[347820606,1736131846927,-1109.09,0.0002068,3]
[347820607,1736131846939,-512.32796113,0.0002068,3]
[347820608,1736131846948,-930.53,0.0002068,3]
[347820609,1736131846958,-178.61,0.00020681,2]
[347820610,1736131846967,-158.63219424,0.00020853,2]
[347820611,1736131846976,-500.0,0.00020861,3]
[347820612,1736131846985,-261.47413253,0.00020861,3]
[347820613,1736131846995,-309.60210111,0.00020863,3]
[347820614,1736131847004,-500.0,0.00020863,3]
[347820615,1736131847013,-500.0,0.00020863,3]
[347820616,1736131847023,-481.40994919,0.000209,2]
[347820617,1736131847153,-537.91,0.00020952,3]
[347820618,1736131847163,-500.0,0.00020952,3]
[347820619,1736131847172,-500.0,0.00020952,3]
[347820620,1736131847182,-2796.19,0.00020952,3]
[347820621,1736131847191,-500.0,0.00020953,3]
[347820622,1736131847200,-500.0,0.00020953,3]
[347820623,1736131847209,-500.0,0.00020953,3]
[347820624,1736131847220,-514.7228253,0.00020953,3]
[347820625,1736131847230,-901.7,0.00020953,3]
[347820626,1736131847239,-500.0,0.00020953,3]
[347820627,1736131847248,-521.88,0.00020953,3]
[347820628,1736131847258,-500.0,0.00020953,3]
[347820629,1736131847267,-7709.78,0.00020953,3]
[347820630,1736131847276,-500.0,0.00020953,3]
[347820631,1736131847285,-548.4,0.00020953,3]
[347820632,1736131847294,-500.0,0.00020953,3]
[347820633,1736131847304,-500.0,0.00020953,3]
[347820634,1736131847313,-500.0,0.00020953,3]
[347820635,1736131847322,-500.0,0.00020953,3]
[347820636,1736131847331,-500.0,0.00020953,3]
[347820637,1736131847340,-500.0,0.00020953,3]
[347820638,1736131847350,-606.6661008,0.00020953,3]
[347820639,1736131847362,-500.0,0.00020953,3]
[347820640,1736131847370,-500.0,0.00020953,3]
[347820641,1736131847380,-500.0,0.00020953,3]
[347820642,1736131847389,-1109.09,0.00020954,3]
[347820643,1736131847399,-930.53,0.00020954,3]
[347820644,1736131847408,-2790.39,0.00020996,3]
[347820645,1736131847418,-500.0,0.00020996,3]
[347820646,1736131847427,-500.0,0.00020996,3]
[347820647,1736131847437,-500.0,0.00020996,3]
[347820648,1736131847446,-500.0,0.00020997,3]
[347820649,1736131847456,-508.84653427,0.00020997,2]
[347820650,1736131847465,-2012.61,0.00020997,3]
[347820651,1736131847474,-5164.75756255,0.00021,2]
[347820652,1736131847483,-5164.75756255,0.00021,2]
[347820653,1736131847492,-481.40994913,0.00021003,2]
[347820654,1736131847501,-481.40994913,0.00021107,2]
[347820655,1736131847510,-339.51621921,0.00021134,2]
[347820656,1736131847519,-500.0,0.00021135,3]
[347820657,1736131847528,-448.89562568,0.00021137,3]
[347820658,1736131847537,-500.0,0.00021137,3]
[347820659,1736131847546,-158.63219418,0.00021148,2]
[347820660,1736131847556,-481.40994913,0.0002121,2]
[347820661,1736131847565,-537.91,0.00021226,3]
[347820662,1736131847574,-500.0,0.00021226,3]
[347820663,1736131847583,-150.20094381,0.00021226,3]
[347820664,1736131847592,-2796.19,0.00021226,3]
[347820665,1736131847602,-500.0,0.00021227,3]
[347820666,1736131847613,-500.0,0.00021227,3]
[347820667,1736131847622,-500.0,0.00021227,3]
[347820668,1736131847631,-901.7,0.00021227,3]
[347820669,1736131847641,-500.0,0.00021227,3]
[347820670,1736131847650,-521.88,0.00021227,3]
[347820671,1736131847659,-500.0,0.00021227,3]
[347820672,1736131847668,-7709.78,0.00021227,3]
[347820673,1736131847677,-500.0,0.00021227,3]
[347820674,1736131847686,-548.4,0.00021227,3]
[347820675,1736131847695,-500.0,0.00021227,3]
[347820676,1736131847704,-500.0,0.00021227,3]
[347820677,1736131847713,-500.0,0.00021227,3]
[347820678,1736131847722,-500.0,0.00021227,3]
[347820679,1736131847732,-500.0,0.00021227,3]
[347820680,1736131847742,-500.0,0.00021227,3]
[347820681,1736131847751,-500.0,0.00021227,3]
[347820682,1736131847760,-500.0,0.00021227,3]
[347820683,1736131847769,-500.0,0.00021227,3]
[347820684,1736131847778,-1109.09,0.00021228,3]
[347820685,1736131847787,-930.53,0.00021228,3]
[347820686,1736131847797,-2790.39,0.0002127,3]
[347820687,1736131847806,-500.0,0.0002127,3]
[347820688,1736131847815,-2012.61,0.00021271,3]
[347820689,1736131847824,-481.40994913,0.00021314,2]
[347820690,1736131847833,-500.0,0.0002133,2]
[347820691,1736131847842,-500.0,0.00021409,3]
[347820692,1736131847851,-510.78092491,0.00021411,3]
[347820693,1736131847863,-481.40994913,0.00021417,2]
[347820694,1736131847872,-158.63219418,0.00021442,2]
[347820695,1736131847881,-500.0,0.00021492,2]
[347820696,1736131847890,-537.91,0.000215,3]
[347820697,1736131847899,-500.0,0.000215,3]
[347820698,1736131847908,-2796.19,0.000215,3]
[347820699,1736131847918,-500.0,0.00021501,3]
[347820700,1736131847927,-618.19694582,0.00021501,3]
[347820701,1736131847940,-204.29963507,0.00021501,3]
[347820702,1736131847949,-901.7,0.00021501,3]
[347820703,1736131847959,-500.0,0.00021501,3]
[347820704,1736131847968,-521.88,0.00021501,3]
[347820705,1736131847979,-500.0,0.00021501,3]
[347820706,1736131847988,-7709.78,0.00021501,3]
[347820707,1736131847998,-500.0,0.00021501,3]
[347820708,1736131848009,-548.4,0.00021501,3]
[347820709,1736131848019,-500.0,0.00021501,3]
[347820710,1736131848029,-500.0,0.00021501,3]
[347820711,1736131848038,-500.0,0.00021501,3]
[347820712,1736131848048,-500.0,0.00021501,3]
[347820713,1736131848057,-500.0,0.00021501,3]
[347820714,1736131848067,-500.0,0.00021501,3]
[347820715,1736131848077,-500.0,0.00021501,3]
[347820716,1736131848086,-500.0,0.00021501,3]
[347820717,1736131848096,-500.0,0.00021501,3]
[347820718,1736131848106,-1109.09,0.00021502,3]
[347820719,1736131848116,-930.53,0.00021502,3]
[347820720,1736131848126,-481.40994913,0.00021521,2]
[347820721,1736131848135,-2790.39,0.00021544,3]
[347820722,1736131848144,-500.0,0.00021544,3]
[347820723,1736131848154,-2012.61,0.00021545,3]
[347820724,1736131848163,-481.40994913,0.00021624,2]
[347820725,1736131848173,-447.089,0.0002166,2]
[347820726,1736131848182,-500.0,0.00021683,3]
[347820727,1736131848193,-481.40994913,0.00021728,2]
[347820728,1736131848202,-158.63219418,0.00021737,2]
[347820729,1736131848212,-402.22264065,0.00021774,2]
[347820730,1736131848221,-537.91,0.00021774,3]
[347820731,1736131848231,-500.0,0.00021774,3]
[347820732,1736131848240,-2796.19,0.00021774,3]
[347820733,1736131848249,-161.5792909,0.00021775,3]
[347820734,1736131848260,-901.7,0.00021775,3]
[347820735,1736131848269,-500.0,0.00021775,3]
[347820736,1736131848279,-521.88,0.00021775,3]
[347820737,1736131848289,-500.0,0.00021775,3]
[347820738,1736131848299,-7709.78,0.00021775,3]
[347820739,1736131848308,-500.0,0.00021775,3]
[347820740,1736131848318,-548.4,0.00021775,3]
[347820741,1736131848327,-500.0,0.00021775,3]
[347820742,1736131848337,-500.0,0.00021775,3]
[347820743,1736131848346,-500.0,0.00021775,3]
[347820744,1736131848355,-500.0,0.00021775,3]
[347820745,1736131848368,-500.0,0.00021775,3]
[347820746,1736131848378,-500.0,0.00021775,3]
[347820747,1736131848388,-208.99161458,0.00021775,3]
[347820748,1736131848398,-500.0,0.00021775,3]
[347820749,1736131848407,-500.0,0.00021775,3]
[347820750,1736131848416,-1109.09,0.00021776,3]
[347820751,1736131848425,-930.53,0.00021776,3]
[347820752,1736131848435,-2790.39,0.00021818,3]
[347820753,1736131848444,-500.0,0.00021818,3]
[347820754,1736131848453,-2012.61,0.00021819,3]
[347820755,1736131848463,-481.40994913,0.00021831,2]
[347820756,1736131848473,-1000.0,0.00021878,2]
[347820757,1736131848482,-481.40994913,0.00021934,2]
[347820758,1736131848491,-500.0,0.00021957,3]
[347820759,1736131848501,-158.63219418,0.00022031,2]
[347820760,1736131848511,-481.40994913,0.00022038,2]
[347820761,1736131848520,-537.91,0.00022048,3]
[347820762,1736131848529,-500.0,0.00022048,3]
[347820763,1736131848539,-2796.19,0.00022048,3]
[347820764,1736131848549,-901.7,0.00022049,3]
[347820765,1736131848559,-500.0,0.00022049,3]
[347820766,1736131848568,-521.88,0.00022049,3]
[347820767,1736131848577,-500.0,0.00022049,3]
[347820768,1736131848587,-7709.78,0.00022049,3]
[347820769,1736131848597,-500.0,0.00022049,3]
[347820770,1736131848607,-548.4,0.00022049,3]
[347820771,1736131848618,-500.0,0.00022049,3]
[347820772,1736131848627,-500.0,0.00022049,3]
[347820773,1736131848637,-500.0,0.00022049,3]
[347820774,1736131848646,-500.0,0.00022049,3]
[347820775,1736131848655,-577.2516491,0.00022049,3]
[347820776,1736131848665,-500.0,0.00022049,3]
[347820777,1736131848675,-500.0,0.00022049,3]
[347820778,1736131848684,-500.0,0.00022049,3]
[347820779,1736131848693,-1109.09,0.0002205,3]
[347820780,1736131848702,-930.53,0.0002205,3]
[347820781,1736131848711,-2790.39,0.00022092,3]
[347820782,1736131848720,-500.0,0.00022092,3]
[347820783,1736131848730,-2012.61,0.00022093,3]
[347820784,1736131848740,-481.40994913,0.00022141,2]
[347820785,1736131848749,-162.199321,0.00022174,2]
[347820786,1736131848759,-396.834,0.00022205,2]
[347820787,1736131848768,-500.0,0.00022231,3]
[347820788,1736131848778,-481.40994913,0.00022245,2]
[347820789,1736131848787,-537.91,0.00022322,3]
[347820790,1736131848796,-500.0,0.00022322,3]
[347820791,1736131848806,-2796.19,0.00022322,3]
[347820792,1736131848815,-901.7,0.00022323,3]
[347820793,1736131848825,-500.0,0.00022323,3]
[347820794,1736131848834,-521.88,0.00022323,3]
[347820795,1736131848843,-500.0,0.00022323,3]
[347820796,1736131848853,-7709.78,0.00022323,3]
[347820797,1736131848865,-500.0,0.00022323,3]
[347820798,1736131848875,-548.4,0.00022323,3]
[347820799,1736131848884,-319.31980454,0.00022323,3]
[347820800,1736131848894,-500.0,0.00022323,3]
[347820801,1736131848903,-500.0,0.00022323,3]
[347820802,1736131848912,-500.0,0.00022323,3]
[347820803,1736131848921,-500.0,0.00022323,3]
[347820804,1736131848931,-151.0,0.00022323,7]
[347820805,1736131848944,-500.0,0.00022323,3]
[347820806,1736131848954,-500.0,0.00022323,3]
[347820807,1736131848963,-1109.09,0.00022324,3]
[347820808,1736131848972,-930.53,0.00022324,3]
[347820809,1736131848982,-158.63219418,0.00022326,2]
[347820810,1736131848991,-481.40994913,0.00022348,2]
[347820811,1736131849001,-2790.39,0.00022366,3]
[347820812,1736131849010,-500.0,0.00022366,3]
[347820813,1736131849020,-2012.61,0.00022367,3]
[347820814,1736131849028,-151.0,0.00022369,7]
[347820815,1736131849038,-481.40994913,0.00022452,2]
[347820816,1736131849048,-500.0,0.00022505,3]
[347820817,1736131849058,-151.0,0.00022505,7]